Cogmind - Beta 10.2 *** ADVENTURER MODE // 2021.08.12 @ 12:46:48 Player: BoomBlip Result: Destroyed by as-91583 with Assembled Blade Performance ------------- Evolutions (1) 500 Regions Visited (4) 800 Robots Destroyed (24) 120 Value Destroyed (660) 660 Prototype IDs (0) 0 Alien Tech Used (0) 0 Bonus (4) 4 TOTAL SCORE: 2084 Bonus ------- High Alert Combat Kills 4 Cogmind --------- Core Integrity 0/400 Matter 297/300 Energy 100/100 System Corruption 23% Temperature Cool (0) Movement Core (1350) Ox26 Location -9/Exiles Parts ------- > --- POWER (1) -------- (None) > --- PROPULSION (2) --- (None) > --- UTILITY (3) ------ Humpback > --- WEAPON (3) ------- (None) > --- INVENTORY (24) --- Plasma Cannon Light Assault Rifle Chainsword Peak State ------------ > --- POWER ------------ Improved Ion Engine > --- PROPULSION ------- Light Treads Light Treads > --- UTILITY ---------- Improved Heat Sink Humpback > --- WEAPON ----------- EM Pulse Gun Heavy Ion Cannon Light Assault Rifle > --- INVENTORY -------- Plasma Cannon Light Assault Rifle Chainsword [Rating: 15] Favorites ----------- Power Improved Ion Engine Engine Improved Ion Engine Propulsion Light Treads Treads Light Treads Flight Unit Flight Unit Utility Improved Heat Sink Device Improved Heat Sink Storage Medium Storage Unit Protection Light Armor Plating Weapon EM Pulse Gun Energy Gun EM Pulse Gun Energy Cannon Heavy Ion Cannon Ballistic Gun Light Assault Rifle Build | -11 -10 -9 -9 -9 ------- Run | Scr Mat Mat Min Exi Slots Evolved 2 | . . 2 . . Power . | . . . . . Propulsion . | . . . . . Utility 1 | . . 1 . . Weapon 1 | . . 1 . . Parts Attached 31 | 5 4 6 14 2 Power 5 | 1 . 1 2 1 Engine 5 | 1 . 1 2 1 Core . | . . . . . Reactor . | . . . . . Propulsion 10 | 2 . 2 6 . Treads 7 | 2 . 2 3 . Leg . | . . . . . Wheel . | . . . . . Hover . | . . . . . Flight 3 | . . . 3 . Utility 5 | . 2 1 1 1 Device 2 | . 1 . 1 . Storage 2 | . 1 . . 1 Processor . | . . . . . Hackware . | . . . . . Protection 1 | . . 1 . . Artifact . | . . . . . Weapon 11 | 2 2 2 5 . Energy Gun 6 | 1 2 2 1 . Energy Cannon 1 | . . . 1 . Ballistic Gun 4 | 1 . . 3 . Ballistic Cannon . | . . . . . Launcher . | . . . . . Special Weapon . | . . . . . Impact Weapon . | . . . . . Slashing Weapon . | . . . . . Piercing Weapon . | . . . . . Special Melee Weapon . | . . . . . Unidentified Prototypes . | . . . . . Parts Lost 21 | . 1 2 11 7 Power 3 | . . . 2 1 Propulsion 6 | . . 1 3 2 Utility 3 | . . . 2 1 Weapon 9 | . 1 1 4 3 Highest Loss Streak 7 | . 1 2 6 7 Average Slot Usage (%) 80 | . 89 91 64 81 Engine 11 | . 14 11 9 10 Treads 21 | . 28 20 17 21 Device 8 | . 7 11 6 10 Storage 7 | . 9 11 2 6 Protection 1 | . . 6 1 . Energy Gun 14 | . 14 31 6 10 Energy Cannon 4 | . . . 3 10 Ballistic Gun 10 | . 14 . 14 10 Naked Turns . | . . . . . Heaviest Build 98 | 8 17 25 23 98 Greatest Support 40 | 40 40 40 40 40 Greatest Overweight (x) 4 | . . 1 4 4 Average Overweight (x) . | . . . . 1 Largest Inventory Capacity 24 | 4 8 8 8 24 Average Capacity 9 | 4 6 8 4 15 Most Carried 4 | 1 2 4 4 3 Average Carried 2 | . . 3 2 3 Final Capacity 24 | 4 8 8 4 24 Final Carried 4 | 1 2 4 3 3 Class Distribution -------------------- 39% | Mutant 30% | Gunner 15% | Hauler-Gunner 10% | Scavenger-Tank Dominant Class ---------------- Mutant | -10/Materials Scavenger-Tank | -9/Materials Mutant | -9/Mines Hauler-Gunner | -9/Exiles Resources | -11 -10 -9 -9 -9 ----------- Run | Scr Mat Mat Min Exi Matter Collected 568 | 207 85 68 195 13 Remotely . | . . . . . Salvage Created 946 | . 273 440 220 13 Parts 46 | . 11 26 9 . Haulers Intercepted . | . . . . . Recyclers Shooed . | . . . . . Parts Field Recycled . | . . . . . Retrieved Matter . | . . . . . Parts Self-Destructed . | . . . . . Prevented . | . . . . . Kills | -11 -10 -9 -9 -9 ------- Run | Scr Mat Mat Min Exi Combat Hostiles Destroyed 31 | . 6 10 14 1 Melee 1 | . . . . 1 Guns 25 | . 4 7 14 . AOE 4 | . 2 2 . . Classes Destroyed 7 | . 1 5 1 . Builder 1 | . . 1 . . Operator 1 | . . 1 . . Watcher 1 | . . 1 . . Swarmer 8 | . . 3 5 . Grunt 11 | . 6 5 . . Sentry 2 | . . 2 . . Assembled 10 | . . . 9 1 Best Kill Streak 6 | . 3 4 6 1 Combat Bots Only 6 | . 3 3 6 1 Max Kills in Single Turn 2 | . 2 2 2 1 Gunslinging 1 | . . . 1 . Exploded 2 | . 2 1 . . Melee 1 | . . . . 1 Uniques/NPCs Destroyed . | . . . . . Combat | -11 -10 -9 -9 -9 -------- Run | Scr Mat Mat Min Exi Damage Taken 2110 | . 225 381 697 807 Core 402 | . . 13 201 188 Absorbed by Shields . | . . . . . Core Remaining (%) 100 | 100 100 . . . Volleys Fired 79 | . 17 19 42 1 Largest 3 | . 2 3 3 3 Hottest 125 | . 60 120 125 125 Shots Fired 189 | . 34 55 96 4 Gun 185 | . 34 55 93 3 Cannon 4 | . . . 3 1 Launcher . | . . . . . Special . | . . . . . Kinetic 80 | . 17 . 61 2 Thermal 4 | . . . 3 1 Explosive . | . . . . . Electromagnetic 105 | . 17 55 32 1 Robot Hit Streak 21 | . 19 21 6 2 Robot Miss Streak 3 | . 2 2 3 1 Penetration Max . | . . . . . Secondary Targets 8 | . 1 2 5 . Max Gunslinging Chain 1 | . 1 1 1 . Shots Hit Robots 129 | . 31 37 58 3 Core Hits 56 | . 14 16 24 2 Critical Hits . | . . . . . Critical Kills . | . . . . . Critical Parts Destroyed . | . . . . . Melee Attacks . | . . . . . Impact . | . . . . . Slashing . | . . . . . Piercing . | . . . . . Sneak Attacks . | . . . . . Combat Hostiles . | . . . . . Follow-up Attacks . | . . . . . Damage Inflicted 1830 | . 463 686 604 77 Guns 1247 | . 291 398 532 26 Cannons 28 | . . . . 28 Explosions 528 | . 169 288 71 . Melee . | . . . . . Ramming 27 | . 3 . 1 23 Kinetic 390 | . 103 . 271 16 Thermal 556 | . 169 288 71 28 Explosive . | . . . . . Electromagnetic 857 | . 188 398 261 10 Impact . | . . . . . Slashing . | . . . . . Piercing . | . . . . . Highest Corruption 23 | . . . 15 23 Average Corruption 14 | . . . 13 15 Corruption Purged . | . . . . . Effects 44 | . . . 21 23 Message Errors 5 | . . . 1 4 Matter Fused 9 | . . . 6 3 Heat Flow Errors 2 | . . . 1 1 Energy Discharges 5 | . . . 1 4 Data Loss (minor) 7 | . . . 3 4 Data Loss (major) 4 | . . . 2 2 Misfires 2 | . . . 1 1 Misdirections 4 | . . . 1 3 Targeting Errors 6 | . . . 5 1 Overload Shots . | . . . . . Overflow Damage 46 | . . 23 23 . Projectiles . | . . . . . Explosions 46 | . . 23 23 . Melee . | . . . . . Knockbacks . | . . . . . Impact . | . . . . . Kinetic . | . . . . . Secondary . | . . . . . Self-Inflicted Damage 136 | . 30 101 5 . Shots 4 | . 1 2 1 . Rammed 4 | . 1 . 1 2 Targets Rammed 4 | . 1 . 1 2 Kicked . | . . . . . Crushed . | . . . . . Highest Temperature 210 | . 79 87 210 128 Average Temperature 29 | . 27 23 33 51 Received Heat Transfer 540 | . 153 87 140 160 Siege Activations . | . . . . . Robots Corrupted 1 | . . 1 . . Combat Hostiles 1 | . . 1 . . Parts Fried 3 | . . 3 . . Impact Corruptions . | . . . . . Robots Melted . | . . . . . Combat Hostiles . | . . . . . Parts Melted . | . . . . . Heat Transferred 587 | . 200 250 100 37 Parts Sabotaged . | . . . . . Parts Stolen . | . . . . . Parts Stripped . | . . . . . Power Chain Reactions 7 | . 2 4 1 . Missiles Intercepted . | . . . . . Alert | -11 -10 -9 -9 -9 ------- Run | Scr Mat Mat Min Exi Peak Influence 424 | . 170 424 239 . Initial 139 | . . 61 139 . Average 144 | . 87 231 149 . Maximum Alert Level 2 | . . 2 1 . Low Security (%) 78 | 100 100 46 81 . Level 1 18 | . . 41 18 . Level 2 3 | . . 11 . . Level 3 . | . . . . . Level 4 . | . . . . . Level 5 . | . . . . . High Security . | . . . . . Max Security . | . . . . . Squads Dispatched 5 | . . 5 . . Investigation 2 | . . 2 . . Extermination . | . . . . . Reinforcement 3 | . . 3 . . Assault . | . . . . . Garrison . | . . . . . Intercept . | . . . . . Construction Impeded . | . . . . . Haulers Reinforced . | . . . . . Stealth | -11 -10 -9 -9 -9 --------- Run | Scr Mat Mat Min Exi Distress Signals 3 | . . 3 . . Communications Jammed . | . . . . . Distress Signals . | . . . . . Times Spotted 57 | . 8 17 19 13 Peak Tracking Total 15 | . 2 3 6 15 Tactical Retreats 3 | . . . 2 1 Traps | -11 -10 -9 -9 -9 ------- Run | Scr Mat Mat Min Exi Traps Triggered 1 | . . 1 . . Indirectly . | . . . . . Trap Hack Attempts . | . . . . . Triggered . | . . . . . Disarmed . | . . . . . Reprogrammed . | . . . . . Reused . | . . . . . Traps Extracted . | . . . . . Installed . | . . . . . Triggered . | . . . . . Machines | -11 -10 -9 -9 -9 ---------- Run | Scr Mat Mat Min Exi Machines Disabled 4 | . . 4 . . Max in Single Turn 2 | . . 2 . . Machines Sabotaged . | . . . . . Garrisons Compromised . | . . . . . Overloaded Fab Kills . | . . . . . Fab Network Shutdowns . | . . . . . Hacking | -11 -10 -9 -9 -9 --------- Run | Scr Mat Mat Min Exi Machines Accessed 1 | . . . . 1 Terminals . | . . . . . Fabricators . | . . . . . Repair Stations . | . . . . . Recycling Units . | . . . . . Scanalyzers . | . . . . . Garrison Access . | . . . . . Total Hacks 23 | . . . . 23 Successful 23 | . . . . 23 Failed . | . . . . . Catastrophic . | . . . . . Database Lockouts . | . . . . . Manual . | . . . . . Terminals . | . . . . . Fabricators . | . . . . . Repair Stations . | . . . . . Recycling Units . | . . . . . Scanalyzers . | . . . . . Garrison Access . | . . . . . Terminal Hacks 23 | . . . . 23 Record 23 | . . . . 23 Fabricator Hacks . | . . . . . Repair Station Hacks . | . . . . . Recycling Unit Hacks . | . . . . . Scanalyzer . | . . . . . Garrison Access Hacks . | . . . . . Unauthorized Hacks . | . . . . . Terminals . | . . . . . Fabricators . | . . . . . Repair Stations . | . . . . . Recycling Units . | . . . . . Scanalyzers . | . . . . . Garrison Access . | . . . . . Data Cores Recovered . | . . . . . Used . | . . . . . Hacking Detections . | . . . . . Full Trace Events . | . . . . . Feedback Events . | . . . . . Feedback Blocked . | . . . . . Robot Schematics Acquired . | . . . . . Robots Built . | . . . . . Matter . | . . . . . Time . | . . . . . Total Robot Build Rating . | . . . . . Part Schematics Acquired . | . . . . . Parts Built . | . . . . . Matter . | . . . . . Time . | . . . . . Total Part Build Rating . | . . . . . Parts Repaired . | . . . . . Time . | . . . . . Parts Recycled . | . . . . . Recycled Matter . | . . . . . Retrieved Matter . | . . . . . Retrieved Components . | . . . . . Parts Scanalyzed . | . . . . . Part Schematics Acquired . | . . . . . Parts Damaged . | . . . . . Bothacking | -11 -10 -9 -9 -9 ------------ Run | Scr Mat Mat Min Exi Used RIF Installer . | . . . . . Robots Hacked . | . . . . . Non-combat . | . . . . . Combat . | . . . . . Robot Hacks Applied . | . . . . . Relay Couplers Released . | . . . . . Robots Rewired . | . . . . . Allies Hacked . | . . . . . Hacks Repelled . | . . . . . Allies | -11 -10 -9 -9 -9 -------- Run | Scr Mat Mat Min Exi Total Allies . | . . . . . Largest Group . | . . . . . Highest-Rated Group . | . . . . . Highest-Rated Ally . | . . . . . Total Orders . | . . . . . Ally Attacks . | . . . . . Total Damage . | . . . . . Kills . | . . . . . Allies Corrupted . | . . . . . Allies Melted . | . . . . . Intel | -11 -10 -9 -9 -9 ------- Run | Scr Mat Mat Min Exi Robot Analysis Total . | . . . . . Derelict Logs Recovered . | . . . . . Drone Launches . | . . . . . Drone Recoveries . | . . . . . Exploration | -11 -10 -9 -9 -9 ------------- Run | Scr Mat Mat Min Exi Turns Passed 1739 | 86 339 350 441 523 Spaces Moved 886 | 52 178 173 201 282 Core 4 | 4 . . . . Treads 860 | 48 178 173 179 282 Legs . | . . . . . Wheels . | . . . . . Hover . | . . . . . Flight 22 | . . . 22 . Fastest Speed 37 | 50 160 160 37 160 Average Speed 164 | 151 160 162 151 180 Slowest Speed 380 | 160 160 180 380 240 Overloaded Moves . | . . . . . Propulsion Burnouts . | . . . . . Robots Hopped . | . . . . . Cave-ins Triggered 1 | . . . 1 . Exploration Rate (%) 30 | 5 30 29 26 64 Regions Visited 4 Branch Regions 2 Pre-discovered Areas 1 | . . . . 1 Known Exits Taken . | . . . . . Unknown Exits Taken 4 | 1 1 1 1 . Scrap Searched 1 | . . . 1 . Spaces Dug . | . . . . . Terrain Destroyed 51 | . 10 33 8 . Melee . | . . . . . Projectile 3 | . . . 3 . AOE 48 | . 10 33 5 . Terrain Rammed . | . . . . . Walls Destroyed . | . . . . . Machines Disabled . | . . . . . Actions | -11 -10 -9 -9 -9 --------- Run | Scr Mat Mat Min Exi Total 1007 | 57 200 198 264 288 Wait . | . . . . . Move 882 | 51 177 172 200 282 Hop . | . . . . . Pick Up 6 | 1 1 . 4 . Fast Attach 19 | 5 2 1 9 2 Attach 8 | . 1 2 5 . Detach 1 | . . 1 . . Swap 4 | . 1 3 . . Drop 4 | . . . 3 1 Fire 79 | . 17 19 42 1 Melee . | . . . . . Ram 1 | . . . . 1 Kick . | . . . . . Crush 3 | . 1 . 1 1 Escape Stasis . | . . . . . Rewire . | . . . . . Trap . | . . . . . Miscellaneous . | . . . . . Route ------- -11/Scrapyard -10/Materials -9/Materials -9/Mines (discovered 2 exits: [*Mat] / *Exi) -9/Exiles (discovered 1 exit: [*Min]) History --------- Turn | Location | Event 2 | -11/Scrapyard | Met Revision 17 19 | -11/Scrapyard | Discovered new exit (range 15) 87 | -11/Scrapyard | Entered Materials 317 | -10/Materials | Build established: Mutant 409 | -10/Materials | Discovered new exit (range 12) 426 | -10/Materials | Entered another Materials area 426 | -9/Materials | Evolved 2 slots: Utility x1, Weapon x1 700 | -9/Materials | Discovered new exit (range 15) 776 | -9/Materials | Entered Mines 777 | -9/Mines | Assembled infested the area 870 | -9/Mines | System corruption reached 10% 924 | -9/Mines | Lost 6 parts (1p2n1u2w) 971 | -9/Mines | Discovered new exit (range 12) 994 | -9/Mines | Crushed by falling debris 994 | -9/Mines | Core integrity fell below 50% 1207 | -9/Mines | Deemed a non-threat by the Exiles lab entrance 1209 | -9/Mines | Discovered new exit (range 5) 1217 | -9/Mines | Entered Exiles 1267 | -9/Exiles | Met 8R-AWN 1293 | -9/Exiles | Met EX-HEX 1354 | -9/Exiles | Met EX-DEC 1396 | -9/Exiles | Build established: Gunner 1399 | -9/Exiles | Learned location of Zion (-7) 1492 | -9/Exiles | Discovered new exit (range 14) 1687 | -9/Exiles | Visited The Gauntlet 1702 | -9/Exiles | Attacked by the Exiles 1733 | -9/Exiles | Core integrity fell below 20% 1740 | -9/Exiles | Destroyed by as-91583 with Assembled Blade Last Messages --------------- 01702_ EXILES: Hostile robot within lab perimeter. Defensive protocols time, folks! 01716_ DK-RAY suffers critical hit. 01716_ DK-RAY destroyed. 01721_ EX-BIN: "I just want to science!" 01722_ System corrupted: Matter fused (-10). 01722_ Slammed into as-83518. 01722_ as-83518 destroyed. [Achievement: Fist Fight] 01723_ Acquired 13 matter. 01724_ System corrupted: EM Pulse Gun targeting data glitched. 01724_ Lgt. Assault Rifle destroyed. 01730_ Imp. Heat Sink destroyed. 01732_ Lgt. Treads destroyed. 01734_ Hvy. Ion Cannon destroyed. 01735_ Lgt. Treads destroyed. 01736_ Slammed into EX-DEC. 01738_ Imp. Ion Engine destroyed. 01738_ System corrupted by crushing effect (+3). 01738_ EM Pulse Gun destroyed. Map ----- +----------------------------------------------------+ | ???????????#"" ###?###??????#"""" | | ???????????#""" ## #????"" | | ???????????#"" ??"" | | ???????????##"" ? | | ????????????#"""" ?? | | ????????????## ? | | ?????????????#" "??? "" | | ?????????????#"""" ""??? ##""" " " | | ?????????????#"" ""#???????####""" " | | ?????????????#" """"#???????????###""" | | ?????????????#""" """#?????????????#### | | ?????????????## z ""#?????????????????? | | ??????????????#"" """##?????????????????? | | ??????????????##""" ##??????????????????? | | ???????????????##"""" ##???????????????????? | | ????????????????### a #????????????????????? | | ??????????????????##### ##????????????????????? | | ??????????????????????## #?????????????????????? | | ???????????????????????# #?????????????????????? | | ???????????????????????# #?????????????????????? | | ???????????????????????# #?????????????????????? | | ???????????????????????# a#?????????????????????? | | ???????????????????????# #?????????????????????? | | ???????????????????????# a#?????????????????????? | | ???????????????????????#aaa#?????????????????????? | | ???????????????????????# @=#?????????????????????? | | ??????????????? ??????# #?????????????????????? | | ?????????????##"""###### ########??????????????? | | ????????????""" """"""c """""""#??????????????? | | ??????????"""" "#"" "??????????? | | ???????? c " "??????????? | | ???????? " "???????????? | | ???????? " "???????????? | | ???????? "" #"" "??????????? | | ?????????""""" " """" """""#??????????????? | | ????????????###"""########"""######??????????????? | | ??????????????" ????????? ""??????????????????? | | ?????????????????????????? """??????????????????? | | ??????????????????????????"""""#?????????????????? | | ?????????????????????????? """???????????????????? | | ??????????????????????????"""????????????????????? | | ?????????????????????????????????????????????????? | | ?????????????????????????????????????????????????? | | ?????????????????????????????????????????????????? | | ?????????????????????????????????????????????????? | | ?????????????????????????????????????????????????? | | | | | | | | | +----------------------------------------------------+ Best States ------------- Heat Dissipation 42 Energy Generation 12 Energy Capacity 265 Matter Stores 300 Matter Capacity 300 Sight Range 16 Terrain Scan Density 10 Armor Coverage 150 Resistance: KI 20 Resistance: TH 20 Resistance: EX 20 Resistance: EM 20 Resistance: I 20 Resistance: S 20 Resistance: P 20 Evasion (%) 62 Recoil Reduction 2 Offensive Hacking 10 Item Schematics ----------------- None Robot Schematics ------------------ None Fabricated ------------ Nothing Alien Tech Used ----------------- None Achievements -------------- Fist Fight I Survived The Infestation Librarian Unlikely Earthworm Challenges ------------ None Game ------ Seed AngularHellfireMantle Manual? 0 Play Time 00:19:20 Cumulative 55.7 hours Start 2021.01.11 @ 23:27:12 End 2021.08.12 @ 12:46:48 Sessions 6 Manual Loads 0 Difficulty Adventurer Special Mode None Game No. 88 Rogue 81 Adventurer 5 Explorer 2 Win Type - Total 0 Types 0/0/0/0/0/0/0/0/0 Lore% 10 Gallery% 42 Achievement% 17 Wizard Run 0 Options --------- ASCII 0 Keyboard 0 Movement Arrows Keybinds 0 Fullscreen 1 Font 36/Smallcaps Map View 76x50 Tactical HUD 1 Map Filters NONE Filters NONE Steam 1 RUN: ddfc56b1-9f82-4c84-b357-2a5853daedb2